fUSD/lending_fUSD_20250109
["ID","MTS","AMOUNT","RATE_DAILY","PERIOD"]
[348210101,1736392245381,-527.63424449,0.00010172,2]
[348210102,1736392245391,-504.76814262,0.00010172,2]
[348210103,1736392245400,-503.53342602,0.00010172,2]
[348210104,1736392245409,-155.1086191,0.00010172,2]
[348210105,1736392245419,-506.50103085,0.00010172,2]
[348210106,1736392245428,-500.0,0.00010172,2]
[348210107,1736392245437,-500.0,0.00010172,2]
[348210108,1736392245446,-511.22383367,0.00010172,2]
[348210109,1736392245456,-500.81598206,0.00010172,2]
[348210110,1736392245465,-500.0,0.00010172,2]
[348210111,1736392245474,-500.0,0.00010172,2]
[348210112,1736392245484,-501.92080366,0.00010172,2]
[348210113,1736392245493,-503.64156346,0.00010172,2]
[348210114,1736392245502,-500.0,0.00010172,2]
[348210115,1736392245511,-500.0,0.00010172,2]
[348210116,1736392245520,-575.81458918,0.00010172,2]
[348210117,1736392245528,-500.0,0.00010172,2]
[348210118,1736392245537,-501.24406543,0.00010172,2]
[348210119,1736392245549,-507.09633827,0.00010172,2]
[348210120,1736392245560,-500.0,0.00010172,2]
[348210121,1736392245570,-504.36064045,0.00010172,2]
[348210122,1736392245580,-500.69240221,0.00010172,2]
[348210123,1736392245589,-500.47398406,0.00010172,2]
[348210124,1736392245599,-501.39949841,0.00010172,2]
[348210125,1736392245609,-531.5304504,0.00010172,2]
[348210126,1736392245620,-500.0,0.00010172,2]
[348210127,1736392245630,-504.72228285,0.00010172,2]
[348210128,1736392245642,-500.0,0.00010172,2]
[348210129,1736392245651,-501.5556775,0.00010172,2]
[348210130,1736392245660,-500.0,0.00010172,2]
[348210131,1736392245670,-500.0,0.00010172,2]
[348210132,1736392245679,-501.33113962,0.00010172,2]
[348210133,1736392245688,-516.09725788,0.00010172,2]
[348210134,1736392245697,-500.0,0.00010172,2]
[348210135,1736392245706,-502.90042152,0.00010172,2]
[348210136,1736392245715,-500.0,0.00010172,2]
[348210137,1736392245724,-500.0,0.00010172,2]
[348210138,1736392245733,-500.0,0.00010172,2]
[348210139,1736392245742,-502.26516655,0.00010172,2]
[348210140,1736392245751,-501.66020225,0.00010172,2]
[348210141,1736392245760,-500.0,0.00010172,2]
[348210142,1736392245770,-500.0,0.00010172,2]
[348210143,1736392245779,-502.84755456,0.00010172,2]
[348210144,1736392245788,-500.0,0.00010172,2]
[348210145,1736392245797,-502.45767532,0.00010172,2]
[348210146,1736392245806,-500.0,0.00010172,2]
[348210147,1736392245815,-533.02562802,0.00010172,2]
[348210148,1736392245824,-500.0,0.00010172,2]
[348210149,1736392245835,-500.0,0.00010172,2]
[348210150,1736392245844,-500.0,0.00010172,2]
[348210151,1736392245853,-1277.55,0.00010172,2]
[348210152,1736392245863,-500.0,0.00010172,2]
[348210153,1736392245872,-500.0,0.00010172,2]
[348210154,1736392245881,-500.0,0.00010172,2]
[348210155,1736392245890,-500.0,0.00010172,2]
[348210156,1736392245900,-500.0,0.00010172,2]
[348210157,1736392245911,-193.65,0.00010172,2]
[348210158,1736392245920,-500.0,0.00010172,2]
[348210159,1736392245930,-547.78,0.00010172,2]
[348210160,1736392245939,-500.0,0.00010172,2]
[348210161,1736392245948,-500.0,0.00010172,2]
[348210162,1736392245958,-500.0,0.00010172,2]
[348210163,1736392245967,-500.0,0.00010172,2]
[348210164,1736392245976,-500.0,0.00010172,2]
[348210165,1736392245986,-500.0,0.00010172,2]
[348210166,1736392245995,-500.0,0.00010172,2]
[348210167,1736392246004,-500.0,0.00010172,2]
[348210168,1736392246014,-491.8381858,0.00010172,2]
[348210169,1736392246024,-533.74167524,0.00010172,2]
[348210170,1736392246033,-500.0,0.00010172,2]
[348210171,1736392246042,-492.9,0.00010172,2]
[348210172,1736392246052,-506.1969,0.00010172,2]
[348210173,1736392246061,-500.0,0.00010172,2]
[348210174,1736392246070,-500.0,0.00010172,2]
[348210175,1736392246080,-500.0,0.00010172,2]
[348210176,1736392246089,-507.88865863,0.00010172,2]
[348210177,1736392246099,-500.0,0.00010172,2]
[348210178,1736392246108,-500.0,0.00010172,2]
[348210179,1736392246118,-500.74300968,0.00010172,2]
[348210180,1736392246127,-507.40211085,0.00010172,2]
[348210181,1736392246136,-500.0,0.00010172,2]
[348210182,1736392246145,-500.0,0.00010172,2]
[348210183,1736392246154,-507.84718425,0.00010172,2]
[348210184,1736392246163,-501.90739788,0.00010172,2]
[348210185,1736392246172,-505.70644767,0.00010172,2]
[348210186,1736392246181,-500.0,0.00010172,2]
[348210187,1736392246190,-500.0,0.00010172,2]
[348210188,1736392246199,-505.49773893,0.00010172,2]
[348210189,1736392246208,-500.0,0.00010172,2]
[348210190,1736392246217,-500.0,0.00010172,2]
[348210191,1736392246226,-506.83354162,0.00010172,2]
[348210192,1736392246236,-500.0,0.00010172,2]
[348210193,1736392246246,-500.0,0.00010172,2]
[348210194,1736392246257,-505.87274366,0.00010172,2]
[348210195,1736392246268,-503.1151838,0.00010172,2]
[348210196,1736392246277,-500.0,0.00010172,2]
[348210197,1736392246287,-500.98731422,0.00010172,2]
[348210198,1736392246295,-500.0,0.00010172,2]
[348210199,1736392246305,-504.40299271,0.00010172,2]
[348210200,1736392246315,-500.0,0.00010172,2]
[348210201,1736392246324,-220.7433036,0.00010172,2]
[348210202,1736392246333,-506.92661409,0.00010172,2]
[348210203,1736392246345,-500.0,0.00010172,2]
[348210204,1736392246357,-502.85334359,0.00010172,2]
[348210205,1736392246366,-500.0,0.00010172,2]
[348210206,1736392246376,-502.13186789,0.00010172,2]
[348210207,1736392246385,-500.0,0.00010172,2]
[348210209,1736392246395,-542.99397272,0.00010172,2]
[348210210,1736392246404,-500.57106051,0.00010172,2]
[348210211,1736392246414,-598.90143076,0.00010172,2]
[348210212,1736392246423,-500.0,0.00010172,2]
[348210213,1736392246432,-500.0,0.00010172,2]
[348210214,1736392246442,-619.84938109,0.00010172,2]
[348210215,1736392246452,-503.37321872,0.00010172,2]
[348210216,1736392246461,-500.0,0.00010172,2]
[348210217,1736392246470,-500.0,0.00010172,2]
[348210218,1736392246479,-523.06824516,0.00010172,2]
[348210219,1736392246489,-500.51959194,0.00010172,2]
[348210220,1736392246498,-500.0,0.00010172,2]
[348210221,1736392246507,-502.13521581,0.00010172,2]
[348210222,1736392246517,-500.0,0.00010172,2]
[348210223,1736392246526,-500.0,0.00010172,2]
[348210224,1736392246536,-660.06,0.00010172,2]
[348210225,1736392246545,-500.0,0.00010172,2]
[348210226,1736392246555,-500.0,0.00010172,2]
[348210227,1736392246564,-556.60391386,0.00010172,2]
[348210228,1736392246573,-500.0,0.00010172,2]
[348210229,1736392246584,-501.32026633,0.00010172,2]
[348210230,1736392246594,-506.56282964,0.00010172,2]
[348210231,1736392246604,-506.3600905,0.00010172,2]
[348210232,1736392246614,-576.63032825,0.00010172,2]
[348210233,1736392246623,-344.37198734,0.00010172,2]
[348210234,1736392246633,-500.0,0.00010172,2]
[348210235,1736392246643,-500.0,0.00010172,2]
[348210236,1736392246653,-500.0,0.00010172,2]
[348210237,1736392246662,-505.56198887,0.00010172,2]
[348210238,1736392246672,-500.0,0.00010172,2]
[348210239,1736392246682,-500.0,0.00010172,2]
[348210240,1736392246692,-504.75822085,0.00010172,2]
[348210241,1736392246701,-507.04158652,0.00010172,2]
[348210242,1736392246711,-500.0,0.00010172,2]
[348210243,1736392246720,-500.0,0.00010172,2]
[348210244,1736392246731,-501.03872611,0.00010172,2]
[348210245,1736392246741,-500.0,0.00010172,2]
[348210246,1736392246751,-500.0,0.00010172,2]
[348210247,1736392246760,-500.0,0.00010172,2]
[348210248,1736392246770,-501.78074789,0.00010172,2]
[348210249,1736392246780,-500.0,0.00010172,2]
[348210250,1736392246789,-500.0,0.00010172,2]
[348210251,1736392246799,-500.0,0.00010172,2]
[348210252,1736392246809,-541.2234111,0.00010172,2]
[348210253,1736392246818,-508.5005226,0.00010172,2]
[348210254,1736392246827,-500.0,0.00010172,2]
[348210255,1736392246837,-500.0,0.00010172,2]
[348210256,1736392246846,-504.35907844,0.00010172,2]
[348210257,1736392246855,-500.0,0.00010172,2]
[348210258,1736392246865,-500.0,0.00010172,2]
[348210259,1736392246874,-500.0,0.00010172,2]
[348210260,1736392246884,-506.31291777,0.00010172,2]
[348210261,1736392246893,-509.15514741,0.00010172,2]
[348210262,1736392246903,-500.0,0.00010172,2]
[348210263,1736392246912,-505.01242277,0.00010172,2]
[348210264,1736392246922,-503.30208872,0.00010172,2]
[348210265,1736392246932,-503.27518778,0.00010172,2]
[348210266,1736392246942,-500.0,0.00010173,2]
[348210267,1736392246952,-500.0,0.00010173,2]
[348210268,1736392246962,-500.0,0.00010173,2]
[348210269,1736392246971,-500.0,0.00010173,2]
[348210270,1736392246981,-500.0,0.00010173,2]
[348210271,1736392246991,-500.0,0.00010173,2]
[348210272,1736392247001,-500.0,0.00010173,2]
[348210273,1736392247011,-500.0,0.00010173,2]
[348210274,1736392247021,-500.0,0.00010173,2]
[348210275,1736392247030,-500.0,0.00010173,2]
[348210276,1736392247040,-500.0,0.00010173,2]
[348210279,1736392247049,-649.79158152,0.00010173,2]
[348210280,1736392247059,-631.40660963,0.0001021,2]
[348210281,1736392247069,-344.85630781,0.00010271,2]
[348210282,1736392247080,-500.0,0.00010271,2]
[348210283,1736392247090,-504.14147195,0.00010271,2]
[348210284,1736392247099,-156.42840731,0.00010271,2]
[348210285,1736392247109,-500.0,0.00010271,2]
[348210286,1736392247120,-502.6501042,0.00010271,2]
[348210287,1736392247129,-618.0112034,0.00010271,2]
[348210288,1736392247139,-500.5598882,0.00010271,2]
[348210289,1736392247148,-489.88951282,0.00010271,2]
[348210290,1736392247336,-500.0,0.00010271,2]
[348210291,1736392247347,-500.0,0.00010271,2]
[348210292,1736392247356,-500.0,0.00010271,2]
[348210293,1736392247366,-490.0,0.00010271,2]
[348210294,1736392247375,-500.0,0.00010271,2]
[348210295,1736392247385,-853.95,0.00010271,2]
[348210296,1736392247394,-1465.5,0.00010271,2]
[348210297,1736392247404,-817.85,0.00010271,2]
[348210298,1736392247413,-500.0,0.00010271,2]
[348210299,1736392247422,-500.0,0.00010271,2]
[348210300,1736392247431,-684.72,0.00010271,2]
[348210301,1736392247441,-807.44,0.00010271,2]
[348210302,1736392247451,-631.1,0.00010271,2]
[348210303,1736392247460,-705.09,0.00010271,2]
[348210304,1736392247470,-1011.08,0.00010271,2]
[348210305,1736392247479,-950.4,0.00010271,2]
[348210306,1736392247489,-1464.93,0.00010271,2]
[348210307,1736392247498,-500.0,0.00010271,2]
[348210308,1736392247508,-500.0,0.00010271,2]
[348210309,1736392247517,-526.31,0.00010271,2]
[348210310,1736392247526,-673.63,0.00010271,2]
[348210311,1736392247536,-500.0,0.00010271,2]
[348210312,1736392247546,-500.0,0.00010272,2]
[348210313,1736392247556,-500.0,0.00010272,2]
[348210314,1736392247565,-500.0,0.00010273,2]
[348210315,1736392247575,-1150.38,0.00010273,2]
[348210316,1736392247587,-500.0,0.00010273,2]
[348210317,1736392247597,-514.41,0.00010273,2]
[348210318,1736392247607,-500.0,0.00010273,2]
[348210319,1736392247616,-500.0,0.00010273,2]
[348210320,1736392247625,-500.0,0.00010273,2]
[348210321,1736392247635,-994.18,0.00010273,2]
[348210322,1736392247645,-911.09,0.00010273,2]
[348210323,1736392247655,-500.0,0.00010273,2]
[348210324,1736392247664,-551.16,0.00010273,2]
[348210325,1736392247674,-500.0,0.00010273,2]
[348210326,1736392247683,-500.0,0.00010273,2]
[348210327,1736392247692,-811.36,0.00010273,2]
[348210328,1736392247701,-821.04,0.00010273,2]
[348210329,1736392247711,-2206.47,0.00010273,2]
[348210330,1736392247721,-631.40660963,0.00010314,2]
[348210331,1736392247730,-631.40660963,0.00010417,2]
[348210332,1736392247740,-1000.0,0.00010426,2]
[348210333,1736392247749,-867.91,0.00010432,2]
[348210334,1736392247759,-500.0,0.00010445,2]
[348210335,1736392247769,-500.0,0.00010445,2]
[348210336,1736392247778,-500.0,0.00010445,2]
[348210337,1736392247788,-591.72,0.00010445,2]
[348210338,1736392247798,-503.52313004,0.00010445,2]
[348210339,1736392247807,-500.0,0.00010445,2]
[348210340,1736392247817,-500.0,0.00010445,2]
[348210341,1736392247827,-500.0,0.00010445,2]
[348210342,1736392247840,-500.0,0.00010445,2]
[348210343,1736392247850,-1567.47,0.00010445,2]
[348210344,1736392247859,-962.47,0.00010445,2]
[348210345,1736392247869,-500.0,0.00010445,2]
[348210346,1736392247879,-500.0,0.00010445,2]
[348210347,1736392247889,-254.616793,0.00010445,2]
[348210348,1736392247899,-1699.35,0.00010445,2]
[348210349,1736392247908,-559.52,0.00010445,2]
[348210350,1736392247918,-500.0,0.00010445,2]
[348210351,1736392247928,-155.242054,0.00010445,2]
[348210352,1736392247938,-820.12,0.00010445,2]
[348210353,1736392247947,-1092.02,0.00010445,2]
[348210354,1736392247957,-538.11,0.00010445,2]
[348210355,1736392247967,-1072.11,0.00010445,2]
[348210356,1736392247977,-972.24,0.00010445,2]
[348210357,1736392247987,-612.74,0.00010445,2]
[348210358,1736392247997,-500.0,0.00010445,2]
[348210359,1736392248007,-860.95,0.00010445,2]
[348210360,1736392248017,-500.0,0.00010445,2]
[348210361,1736392248028,-500.0,0.00010445,2]
[348210362,1736392248039,-500.0,0.00010445,2]
[348210363,1736392248049,-506.4805156,0.00010445,2]
[348210364,1736392248059,-500.0,0.00010445,2]
[348210365,1736392248069,-847.55,0.00010445,2]
[348210366,1736392248080,-1382.5,0.00010445,2]
[348210367,1736392248093,-1861.34,0.00010445,2]
[348210368,1736392248103,-500.0,0.00010445,2]
[348210369,1736392248114,-757.64,0.00010445,2]
[348210370,1736392248124,-500.0,0.00010445,2]
[348210371,1736392248134,-1188.41,0.00010445,2]
[348210372,1736392248144,-595.03610924,0.00010445,2]
[348210373,1736392248154,-500.0,0.00010445,2]
[348210374,1736392248164,-517.58368306,0.00010445,2]
[348210375,1736392248174,-856.29,0.00010445,2]
[348210376,1736392248183,-500.0,0.00010445,2]
[348210377,1736392248193,-500.0,0.00010445,2]
[348210378,1736392248202,-2771.17,0.00010445,2]
[348210379,1736392248212,-500.0,0.00010445,2]
[348210380,1736392248222,-561.55,0.00010445,2]
[348210381,1736392248231,-500.0,0.00010445,2]
[348210382,1736392248241,-500.0,0.00010445,2]
[348210383,1736392248251,-500.0,0.00010445,2]
[348210384,1736392248264,-500.0,0.00010446,2]
[348210385,1736392248274,-500.0,0.00010446,2]
[348210386,1736392248284,-500.0,0.00010446,2]
[348210387,1736392248294,-500.0,0.00010446,2]
[348210388,1736392248304,-170.80334693,0.00010446,2]
[348210389,1736392248312,-500.0,0.00010446,2]
[348210390,1736392248320,-500.0,0.00010446,2]
[348210391,1736392248329,-500.0,0.00010446,2]
[348210392,1736392248342,-509.76234719,0.00010446,2]
[348210393,1736392248353,-500.0,0.00010446,2]
[348210394,1736392248362,-500.0,0.00010446,2]
[348210395,1736392248371,-557.38106266,0.00010446,2]
[348210396,1736392248381,-500.0,0.00010446,2]
[348210397,1736392248390,-507.06882894,0.00010446,2]
[348210398,1736392248400,-500.0,0.00010446,2]
[348210399,1736392248410,-607.51839087,0.00010446,2]
[348210400,1736392248420,-500.0,0.00010446,2]
[348210401,1736392248430,-500.0,0.00010446,2]
[348210402,1736392248439,-500.0,0.00010446,2]
[348210403,1736392248449,-500.0,0.00010446,2]
[348210404,1736392248459,-500.0,0.00010446,2]
[348210405,1736392248469,-500.0,0.00010446,2]
[348210406,1736392248479,-500.0,0.00010446,2]
[348210407,1736392248489,-500.0,0.00010446,2]
[348210408,1736392248499,-520.20504165,0.00010446,2]
[348210409,1736392248508,-500.0,0.00010446,2]
[348210410,1736392248519,-268.67846729,0.00010446,2]
[348210411,1736392248528,-500.0,0.00010446,2]
[348210412,1736392248538,-500.0,0.00010446,2]
[348210413,1736392248548,-500.0,0.00010446,2]
[348210414,1736392248557,-500.0,0.00010446,2]
[348210415,1736392248567,-500.0,0.00010446,2]
[348210416,1736392248577,-500.0,0.00010446,2]
[348210417,1736392248593,-500.0,0.00010446,2]
[348210418,1736392248602,-500.0,0.00010446,2]
[348210419,1736392248612,-500.0,0.00010446,2]
[348210420,1736392248621,-500.0,0.00010446,2]
[348210421,1736392248631,-500.0,0.00010446,2]
[348210422,1736392248641,-500.0,0.00010446,2]
[348210423,1736392248651,-409.81114723,0.00010446,2]
[348210424,1736392248661,-500.0,0.00010446,2]
[348210425,1736392248671,-500.0,0.00010446,2]
[348210426,1736392248681,-500.0,0.00010446,2]
[348210427,1736392248691,-505.33654036,0.00010446,2]
[348210428,1736392248701,-411.12251807,0.00010446,2]
[348210429,1736392248711,-500.0,0.00010446,2]
[348210430,1736392248722,-500.0,0.00010446,2]
[348210431,1736392248733,-500.0,0.00010446,2]
[348210432,1736392248745,-500.0,0.00010446,2]
[348210433,1736392248757,-500.0,0.00010446,2]
[348210434,1736392248768,-500.0,0.00010446,2]
[348210435,1736392248778,-500.0,0.00010446,2]
[348210436,1736392248788,-500.0,0.00010446,2]
[348210437,1736392248798,-500.0,0.00010446,2]
[348210438,1736392248808,-500.0,0.00010446,2]
[348210439,1736392248818,-500.0,0.00010446,2]
[348210440,1736392248828,-500.0,0.00010446,2]
[348210441,1736392248841,-500.0,0.00010446,2]
[348210442,1736392248850,-500.0,0.00010446,2]
[348210443,1736392248860,-500.0,0.00010446,2]
[348210444,1736392248870,-500.0,0.00010446,2]
[348210445,1736392248880,-500.0,0.00010446,2]
[348210446,1736392248891,-502.81580735,0.00010446,2]
[348210447,1736392248901,-500.0,0.00010446,2]
[348210448,1736392248911,-500.0,0.00010446,2]
[348210449,1736392248920,-500.0,0.00010446,2]
[348210450,1736392248930,-504.90099446,0.00010446,2]
[348210451,1736392248941,-500.0,0.00010446,2]
[348210452,1736392248951,-500.0,0.00010446,2]
[348210453,1736392248961,-500.0,0.00010446,2]
[348210454,1736392248971,-500.0,0.00010446,2]
[348210455,1736392248981,-500.0,0.00010446,2]
[348210456,1736392248992,-500.0,0.00010446,2]
[348210457,1736392249002,-503.07482357,0.00010446,2]
[348210458,1736392249012,-500.0,0.00010446,2]
[348210459,1736392249022,-554.56,0.00010446,2]
[348210460,1736392249033,-500.0,0.00010446,2]
[348210461,1736392249043,-500.0,0.00010446,2]
[348210462,1736392249053,-500.0,0.00010446,2]
[348210463,1736392249063,-500.0,0.00010446,2]
[348210464,1736392249074,-500.0,0.00010446,2]
[348210465,1736392249085,-500.0,0.00010446,2]
[348210466,1736392249095,-500.0,0.00010446,2]
[348210467,1736392249104,-510.63149276,0.00010446,2]
[348210468,1736392249113,-500.0,0.00010446,2]
[348210469,1736392249124,-500.0,0.00010446,2]
[348210470,1736392249133,-590.28149521,0.00010446,2]
[348210471,1736392249143,-500.0,0.00010446,2]
[348210472,1736392249153,-557.92892909,0.00010446,2]
[348210473,1736392249163,-500.0,0.00010446,2]
[348210474,1736392249173,-281.48532665,0.00010446,2]
[348210475,1736392249183,-505.89421977,0.00010446,2]
[348210476,1736392249193,-506.38510219,0.00010446,2]
[348210477,1736392249203,-500.0,0.00010446,2]
[348210478,1736392249212,-500.0,0.00010446,2]
[348210479,1736392249222,-500.0,0.00010446,2]
[348210480,1736392249232,-500.0,0.00010446,2]
[348210481,1736392249242,-511.60225697,0.00010446,2]
[348210482,1736392249251,-500.0,0.00010446,2]
[348210483,1736392249264,-500.0,0.00010446,2]
[348210484,1736392249275,-500.0,0.00010446,2]
[348210485,1736392249284,-500.0,0.00010446,2]
[348210486,1736392249293,-214.58912684,0.00010446,2]
[348210487,1736392249303,-500.0,0.00010446,2]
[348210488,1736392249313,-500.0,0.00010446,2]
[348210489,1736392249323,-500.0,0.00010446,2]
[348210490,1736392249334,-500.0,0.00010446,2]
[348210491,1736392249343,-505.69628421,0.00010446,2]
[348210492,1736392249354,-500.0,0.00010446,2]
[348210493,1736392249363,-511.68175685,0.00010446,2]
[348210494,1736392249373,-617.1270928,0.00010446,2]
[348210495,1736392249383,-503.67652703,0.00010446,2]
[348210496,1736392249393,-223.11,0.00010446,2]
[348210497,1736392249403,-500.0,0.00010446,2]
[348210498,1736392249413,-500.0,0.00010446,2]
[348210499,1736392249424,-500.0,0.00010446,2]
[348210500,1736392249434,-500.0,0.00010446,2]
[348210501,1736392249444,-625.77513431,0.00010446,2]
[348210502,1736392249454,-504.4820394,0.00010446,2]
[348210503,1736392249464,-500.0,0.00010446,2]
[348210504,1736392249474,-500.0,0.00010446,2]
[348210505,1736392249484,-500.0,0.00010446,2]
[348210506,1736392249494,-500.0,0.00010446,2]
[348210507,1736392249503,-510.2542336,0.00010446,2]
[348210508,1736392249513,-500.0,0.00010446,2]
[348210509,1736392249523,-500.0,0.00010446,2]
[348210510,1736392249533,-500.0,0.00010446,2]
[348210511,1736392249543,-500.0,0.00010446,2]
[348210512,1736392249553,-504.80162903,0.00010446,2]
[348210513,1736392249563,-508.977585,0.00010446,2]
[348210514,1736392249572,-505.08756165,0.00010446,2]
[348210515,1736392249584,-500.0,0.00010447,2]
[348210516,1736392249598,-500.0,0.00010447,2]
[348210517,1736392249608,-234.16402539,0.00010447,2]
[348210518,1736392249618,-500.0,0.00010447,2]
[348210519,1736392249628,-500.0,0.00010447,2]
[348210520,1736392249638,-500.0,0.00010447,2]
[348210521,1736392249647,-381.5816534,0.00010447,2]
[348210522,1736392249657,-500.0,0.00010447,2]
[348210523,1736392249666,-500.0,0.00010447,2]
[348210524,1736392249676,-500.0,0.00010447,2]
[348210525,1736392249688,-500.0,0.00010447,2]
[348210526,1736392249697,-150.0,0.00010467,2]
[348210527,1736392249707,-3895.0,0.00010512,2]
[348210528,1736392249717,-1173.0,0.00010512,2]
[348210529,1736392249726,-150.0,0.00010512,2]
[348210530,1736392249736,-9622.0,0.00010512,2]
[348210531,1736392249745,-631.40660963,0.00010521,2]
[348210532,1736392249801,-218.67240032,0.00010545,2]
[348210533,1736392249811,-163.23794404,0.00010545,2]
[348210534,1736392249820,-510.88664361,0.00010545,2]
[348210535,1736392249829,-297.72602734,0.00010545,2]
[348210536,1736392249842,-500.0,0.00010545,2]
[348210537,1736392249851,-500.0,0.00010545,2]
[348210538,1736392249860,-500.0,0.00010545,2]
[348210539,1736392249869,-853.95,0.00010545,2]
[348210540,1736392249879,-1465.5,0.00010545,2]
[348210541,1736392249888,-817.85,0.00010545,2]
[348210542,1736392249898,-500.0,0.00010545,2]
[348210543,1736392249908,-500.0,0.00010545,2]
[348210544,1736392249918,-684.72,0.00010545,2]
[348210545,1736392249928,-807.44,0.00010545,2]
[348210546,1736392249937,-631.1,0.00010545,2]
[348210547,1736392249947,-705.09,0.00010545,2]
[348210548,1736392249956,-1011.08,0.00010545,2]
[348210549,1736392249965,-950.4,0.00010545,2]
[348210550,1736392249975,-1464.93,0.00010545,2]
[348210551,1736392249984,-500.0,0.00010545,2]
[348210552,1736392249994,-500.0,0.00010545,2]
[348210553,1736392250002,-526.31,0.00010545,2]
[348210554,1736392250013,-673.63,0.00010545,2]
[348210555,1736392250022,-500.0,0.00010545,2]
[348210556,1736392250032,-527.91315311,0.00010546,2]
[348210557,1736392250040,-500.0,0.00010546,2]
[348210558,1736392250049,-706.04,0.00010546,2]
[348210559,1736392250059,-909.19,0.00010546,2]
[348210560,1736392250068,-804.77,0.00010546,2]
[348210561,1736392250078,-500.0,0.00010546,2]
[348210562,1736392250090,-1296.61,0.00010546,2]
[348210563,1736392250100,-935.19,0.00010546,2]
[348210564,1736392250109,-2124.62,0.00010546,2]
[348210565,1736392250119,-510.01694958,0.00010546,2]
[348210566,1736392250128,-500.0,0.00010546,2]
[348210567,1736392250137,-500.0,0.00010546,2]
[348210568,1736392250147,-500.0,0.00010547,2]
[348210569,1736392250156,-1150.38,0.00010547,2]
[348210570,1736392250166,-500.0,0.00010547,2]
[348210571,1736392250175,-514.41,0.00010547,2]
[348210572,1736392250184,-500.0,0.00010547,2]
[348210573,1736392250194,-500.0,0.00010547,2]
[348210574,1736392250203,-500.0,0.00010547,2]
[348210575,1736392250212,-994.18,0.00010547,2]
[348210576,1736392250222,-911.09,0.00010547,2]
[348210577,1736392250231,-500.0,0.00010547,2]
[348210578,1736392250241,-551.16,0.00010547,2]
[348210579,1736392250250,-500.0,0.00010547,2]
[348210580,1736392250262,-500.0,0.00010547,2]
[348210581,1736392250272,-811.36,0.00010547,2]
[348210582,1736392250281,-821.04,0.00010547,2]
[348210583,1736392250290,-2206.47,0.00010547,2]
[348210584,1736392250301,-631.40660963,0.00010624,2]
[348210585,1736392250311,-500.0,0.00010719,2]
[348210586,1736392250320,-500.0,0.00010719,2]
[348210587,1736392250330,-500.0,0.00010719,2]
[348210588,1736392250343,-591.72,0.00010719,2]
[348210589,1736392250354,-500.0,0.00010719,2]
[348210590,1736392250363,-500.0,0.00010719,2]
[348210591,1736392250373,-500.0,0.00010719,2]
[348210592,1736392250382,-500.0,0.00010719,2]
[348210593,1736392250392,-1567.47,0.00010719,2]
[348210594,1736392250402,-962.47,0.00010719,2]
[348210595,1736392250411,-500.0,0.00010719,2]
[348210596,1736392250422,-254.616793,0.00010719,2]
[348210597,1736392250431,-1699.35,0.00010719,2]
[348210598,1736392250440,-559.52,0.00010719,2]
[348210599,1736392250450,-500.0,0.00010719,2]
[348210600,1736392250459,-155.242054,0.00010719,2]
[348210601,1736392250468,-820.12,0.00010719,2]
[348210602,1736392250478,-1092.02,0.00010719,2]
[348210603,1736392250487,-538.11,0.00010719,2]